fUST/lending_fUST_20250703
["ID","MTS","AMOUNT","RATE_DAILY","PERIOD"]
[369093269,1751472014296,873.25685375,0.00027397,120]
[369093270,1751472056464,2365.737609,0.00027397,120]
[369093271,1751472121275,193.623004,0.0001585,2]
[369093272,1751472162913,1000.0,0.00025102,60]
[369093273,1751472171958,1000.0,0.00024657,60]
[369093274,1751472181520,1000.0,0.00027397,120]
[369093278,1751472198440,1000.0,0.00024657,60]
[369093295,1751472210956,200.0,0.00026447,120]
[369093296,1751472216916,1000.0,0.00027397,120]
[369093300,1751472224879,173.537459,0.00015961,2]
[369093301,1751472225112,173.537459,0.00015961,31]
[369093302,1751472225338,173.537459,0.00015961,61]
[369093303,1751472225575,173.537459,0.00015961,90]
[369093304,1751472225971,173.537459,0.00015961,120]
[369093305,1751472232550,11057.38398248,0.00015834,2]
[369093306,1751472232586,13842.61601752,0.00015834,2]
[369093307,1751472233540,294.06633,0.00027397,120]
[369093308,1751472342409,2111.61713474,0.00027397,120]
[369093309,1751472359197,1007.48,0.00025102,60]
[369093310,1751472361188,536.0,0.00025102,60]
[369093311,1751472361533,536.0,0.00025102,60]
[369093312,1751472361903,536.0,0.00025102,60]
[369093313,1751472362278,536.0,0.00025102,60]
[369093314,1751472362708,540.0,0.00025102,60]
[369093315,1751472364289,1428.0,0.00025102,60]
[369093316,1751472364607,1431.0,0.00025102,60]
[369093317,1751472364969,1428.0,0.00025102,60]
[369093318,1751472365345,1428.0,0.00025102,60]
[369093319,1751472365733,1428.0,0.00025102,60]
[369093320,1751472366871,2000.0,0.00015843,2]
[369093321,1751472369578,953.0,0.00025102,60]
[369093322,1751472369906,953.0,0.00025102,60]
[369093323,1751472370246,953.0,0.00025102,60]
[369093324,1751472370555,896.56859896,0.00025102,120]
[369093325,1751472370604,953.0,0.00025102,60]
[369093326,1751472371868,953.0,0.00025102,60]
[369093327,1751472404515,153.0,0.00024,120]
[369093328,1751472406196,500.0,0.00023,120]
[369093329,1751472406950,298.39,0.00023,120]
[369093330,1751472425832,1077.0,0.00027397,120]
[369093331,1751472446218,238.0,0.0002191,120]
[369093332,1751472446333,150.5,0.0002191,120]
[369093333,1751472446749,238.0,0.000219,120]
[369093334,1751472446833,150.5,0.000219,120]
[369093335,1751472447225,238.0,0.0002189,120]
[369093336,1751472447281,216.9,0.0002189,120]
[369093337,1751472447684,238.0,0.0002444,120]
[369093338,1751472448193,238.0,0.0002443,120]
[369093339,1751472448636,238.0,0.0002442,120]
[369093340,1751472449079,238.0,0.0002466,120]
[369093341,1751472449587,238.0,0.0002465,120]
[369093342,1751472450057,238.0,0.0002509,120]
[369093343,1751472450502,244.92,0.0002508,120]
[369093344,1751472453085,-1200.0,0.00016397,2]
[369093345,1751472453107,-300.0,0.00016398,2]
[369093346,1751472453130,-300.0,0.00016398,2]
[369093347,1751472453154,-576.88437621,0.00016398,2]
[369093358,1751472466764,5813.0,0.00024,60]
[369093361,1751472542011,-160.0,0.00016398,2]
[369093362,1751472542035,-49.42821528,0.00016398,2]
[369093363,1751472555209,-229.75502602,0.00016398,2]
[369093365,1751472565964,152.0,0.0002191,120]
[369093366,1751472566402,152.0,0.000219,120]
[369093367,1751472566843,152.0,0.0002189,120]
[369093368,1751472567308,152.0,0.0002443,120]
[369093369,1751472567741,152.0,0.0002442,120]
[369093370,1751472568183,152.0,0.0002441,120]
[369093371,1751472568631,152.0,0.000247,120]
[369093372,1751472569076,152.0,0.0002469,120]
[369093373,1751472569511,152.0,0.0002509,120]
[369093374,1751472569943,155.5,0.0002508,120]
[369093376,1751472625079,174.53170782,0.00016398,120]
[369093377,1751472631048,200.0,0.00024576,120]
[369093401,1751472632192,-300.0,0.00016398,2]
[369093403,1751472632202,-300.0,0.00016398,2]
[369093405,1751472632213,-300.0,0.00016398,2]
[369093407,1751472632222,-202.0,0.00016398,2]
[369093409,1751472632233,-1200.0,0.00016398,2]
[369093411,1751472632242,-160.0,0.00016399,2]
[369093413,1751472632251,-10093.2244534,0.00016399,2]
[369093415,1751472632261,-153.09587726,0.0001688,2]
[369093417,1751472632271,-500.0,0.00016979,2]
[369093419,1751472632281,-500.0,0.00016979,2]
[369093421,1751472632291,-265.31383583,0.00016979,2]
[369093423,1751472632305,-419.09790603,0.00016979,2]
[369093425,1751472632315,-500.0,0.00016979,2]
[369093427,1751472632325,-153.5518679,0.00016979,2]
[369093429,1751472632335,-430.43109959,0.00016979,2]
[369093431,1751472632344,-339.70808072,0.00016979,2]
[369093433,1751472632354,-192.81861608,0.00016979,2]
[369093435,1751472632365,-500.0,0.00016979,2]
[369093437,1751472632374,-500.0,0.00016979,2]
[369093439,1751472632385,-198.31804712,0.00016979,2]
[369093441,1751472632399,-6222.94841613,0.0001698,2]
[369093442,1751472632409,-12284.66099238,0.0001698,2]
[369093445,1751472632421,-5306.85927237,0.0001698,2]
[369093447,1751472632433,-411.01344729,0.0001698,2]
[369093720,1751472635610,200.0,0.00027,120]
[369093758,1751472638275,-12714.00912807,0.0001698,2]
[369093759,1751472638285,-76270.04046291,0.0001698,2]
[369093760,1751472638343,-4354.42335675,0.0001698,2]
[369093761,1751472638353,-151.0,0.0001698,2]
[369093762,1751472638363,-165.440117,0.0001698,2]
[369093763,1751472638373,-229.948935,0.0001698,2]
[369093764,1751472638382,-229.948935,0.0001698,2]
[369093765,1751472638392,-151.0,0.0001698,2]
[369093766,1751472638402,-151.0,0.0001698,2]
[369093767,1751472638411,-175.0,0.00017014,3]
[369093768,1751472638421,-295.195296,0.00017417,2]
[369093769,1751472638430,-156.649381,0.00017675,2]
[369093770,1751472638440,-366.4191338,0.000177,2]
[369093771,1751472638452,-365.6958351,0.000177,2]
[369093772,1751472638462,-366.4191338,0.000177,2]
[369093773,1751472638471,-366.4191338,0.000178,2]
[369093774,1751472638483,-176.9924274,0.000178,2]
[369093775,1751472638492,-366.3004382,0.000178,2]
[369093776,1751472638502,-366.4191338,0.000178,2]
[369093777,1751472638512,-153.0,0.00017816,2]
[369093778,1751472638523,-177.6255604,0.00017816,2]
[369093779,1751472638533,-177.6255604,0.00017816,2]
[369093780,1751472638542,-153.0,0.00017816,2]
[369093781,1751472638554,-153.0,0.00017816,2]
[369093782,1751472638564,-177.2485005,0.00017816,2]
[369093783,1751472638574,-159.3697675,0.00017816,2]
[369093785,1751472638583,-159.3697675,0.00017816,2]
[369093786,1751472638592,-177.5677436,0.00017816,2]
[369093787,1751472638602,-159.058969,0.00017816,2]
[369093788,1751472638621,-177.6255604,0.00017816,2]
[369093789,1751472638636,-177.6255604,0.00017816,2]
[369093790,1751472638647,-159.319357,0.00017816,2]
[369093791,1751472638657,-159.3697675,0.00017816,2]
[369093792,1751472638667,-177.6255604,0.00017816,2]
[369093793,1751472638677,-159.3697675,0.00017816,2]
[369093794,1751472638687,-159.3697675,0.00017816,2]
[369093795,1751472638696,-177.6255604,0.00017816,2]
[369093796,1751472638707,-159.3697675,0.00017816,2]
[369093797,1751472638716,-159.3697675,0.00017816,2]
[369093798,1751472638726,-302.2470855,0.00017816,2]
[369093799,1751472638736,-151.0,0.00017816,2]
[369093800,1751472638747,-500.0,0.00017816,2]
[369093801,1751472638757,-601.0,0.00017843,2]
[369093802,1751472638767,-300.0,0.0001792,2]
[369093803,1751472638778,-420.0,0.00017921,2]
[369093804,1751472638788,-307.72423715,0.00017934,2]
[369093805,1751472638798,-553.90362687,0.00017934,2]
[369093806,1751472638810,-984.71755888,0.00017934,2]
[369093807,1751472638820,-1538.62118574,0.00017934,2]
[369093808,1751472638830,-2215.61450747,0.00017934,2]
[369093809,1751472638840,-313.62,0.00017947,3]
[369093810,1751472638851,-3015.69752406,0.00017957,2]
[369093811,1751472638861,-756.87020791,0.00018,2]
[369093812,1751472638884,-9.78146283,0.00018,2]
[369093813,1751472638894,-156.649381,0.00018,2]
[369093814,1751472638904,-151.0,0.00018,2]
[369093815,1751472638914,-229.948935,0.00018,2]
[369093816,1751472638924,-67.47691688,0.00018,2]
[369093817,1751472638936,-162.47201812,0.00018,2]
[369093818,1751472638947,-151.0,0.00018,2]
[369093819,1751472638957,-385.29798188,0.00018011,2]
[369093863,1751472644982,-440.44256851,0.00016979,2]
[369093864,1751472644992,-237.49684195,0.00016979,2]
[369093865,1751472645003,-500.0,0.00016979,2]
[369093866,1751472645013,-320.60870473,0.00016979,2]
[369093867,1751472645023,-253.02454,0.0001765,2]
[369093868,1751472645034,-120.70201812,0.00018011,2]
[369093869,1751472645044,-151.0,0.00018011,2]
[369093870,1751472645060,-3938.8702355,0.00018129,2]
[369093871,1751472645069,-153.09587723,0.00018234,2]
[369093872,1751472645079,-4985.13264181,0.00018302,2]
[369093873,1751472645089,-156.649381,0.00018452,2]
[369093874,1751472645099,-6154.48474297,0.00018474,2]
[369093875,1751472645108,-366.3004382,0.00018614,2]
[369093876,1751472645119,-7446.926539,0.00018647,2]
[369093878,1751472645128,-835.27,0.00018722,3]
[369093880,1751472645137,-156.649381,0.00018728,2]
[369093881,1751472645147,-278.41,0.00018732,3]
[369093882,1751472645157,-556.83,0.00018742,3]
[369093883,1751472645168,-690.642,0.00018752,2]
[369093884,1751472645186,-207.4,0.00018752,2]
[369093885,1751472645196,-322.00152703,0.00018752,2]
[369093886,1751472645208,-177.99847297,0.00018752,2]
[369093887,1751472645218,-500.0,0.00018752,2]
[369093888,1751472645229,-386.22308263,0.00018752,2]
[369093889,1751472645241,-113.77691737,0.00018752,2]
[369093890,1751472645251,-500.0,0.00018752,2]
[369093891,1751472645260,-86.7907702,0.00018752,2]
[369093908,1751472646177,-151.0,0.00018752,2]
[369093909,1751472646187,-413.2092298,0.00018752,2]
[369093910,1751472646197,-500.0,0.00018752,2]
[369093911,1751472646207,-500.0,0.00018752,2]
[369093912,1751472646217,-500.0,0.00018752,2]
[369093913,1751472646226,-500.0,0.00018752,2]
[369093914,1751472646236,-500.0,0.00018752,2]
[369093915,1751472646245,-267.12924259,0.00018807,2]
[369093916,1751472646255,-969.14740589,0.00018808,7]
[369093917,1751472646264,-6755.89552172,0.00018819,2]
[369093918,1751472646276,-2106.56250816,0.00018819,2]
[369093919,1751472646285,-581.68388242,0.00018984,2]
[369093920,1751472646295,-10401.07921563,0.00018993,2]
[369093921,1751472646307,-258.08035399,0.00019,19]
[369093922,1751472646372,-741.91964601,0.00019,19]
[369093924,1751472646382,-151.0,0.00019,2]
[369093925,1751472646391,-229.948935,0.00019,2]
[369093926,1751472646401,-229.948935,0.00019,2]
[369093927,1751472646411,-151.0,0.00019,2]
[369093928,1751472646421,-156.649381,0.00019035,2]
[369093930,1751472646431,-14082.93764838,0.00019078,2]
[369093932,1751472646441,-1500.0,0.00019084,7]
[369093934,1751472646451,-1500.0,0.00019084,7]
[369093936,1751472646466,-1500.0,0.00019084,7]
[369093938,1751472646475,-1500.0,0.00019084,7]
[369093940,1751472646486,-1500.0,0.00019084,7]
[369093941,1751472646496,-1500.0,0.00019084,7]
[369093943,1751472646506,-1500.0,0.00019084,7]
[369093945,1751472646515,-1500.0,0.00019084,7]
[369093947,1751472646525,-1500.0,0.00019084,7]
[369093949,1751472646535,-1500.0,0.00019084,7]
[369093951,1751472646545,-1500.0,0.00019084,7]
[369093953,1751472646558,-1500.0,0.00019084,7]
[369093955,1751472646568,-1500.0,0.00019084,7]
[369093957,1751472646578,-1500.0,0.00019084,7]
[369093959,1751472646588,-1500.0,0.00019084,7]
[369093961,1751472646597,-1500.0,0.00019084,7]
[369093963,1751472646607,-1500.0,0.00019084,7]
[369093965,1751472646616,-1500.0,0.00019084,7]
[369093967,1751472646625,-1500.0,0.00019084,7]
[369093969,1751472646635,-1500.0,0.00019084,7]
[369093971,1751472646644,-1500.0,0.00019084,7]
[369093973,1751472646654,-1500.0,0.00019084,7]
[369093975,1751472646663,-1500.0,0.00019084,7]
[369093977,1751472646673,-1500.0,0.00019084,7]
[369093978,1751472646682,-1500.0,0.00019084,7]
[369093980,1751472646691,-1261.567127,0.00019084,7]
[369093982,1751472646701,-406.0,0.00019115,2]
[369093984,1751472646711,-12062.79009623,0.00019165,2]
[369093986,1751472646721,-229.948935,0.00019166,2]
[369093988,1751472646730,-229.948935,0.00019166,2]
[369093990,1751472646740,-151.0,0.00019166,2]
[369093992,1751472646751,-150.0,0.00019166,2]
[369093994,1751472646761,-966.0,0.00019166,2]
[369093996,1751472646771,-646.0,0.00019166,2]
[369093998,1751472646780,-2151.0,0.00019166,2]
[369094001,1751472646790,-500.0,0.00019173,2]
[369094003,1751472646800,-268.56743899,0.00019173,2]
[369094005,1751472646811,-500.0,0.00019173,2]
[369094007,1751472646820,-500.0,0.00019173,2]
[369094009,1751472646830,-480.34199304,0.00019178,2]
[369094010,1751472646839,-461.18503718,0.00019178,2]
[369094012,1751472646848,-461.45439657,0.00019178,2]
[369094014,1751472646858,-460.0,0.00019178,2]
[369094016,1751472646867,-460.0,0.00019178,2]
[369094018,1751472646877,-460.0,0.00019178,2]
[369094020,1751472646886,-460.0,0.00019178,2]
[369094023,1751472646896,-460.0,0.00019178,2]
[369094024,1751472646905,-460.0,0.00019178,2]
[369094026,1751472646915,-460.0,0.00019178,2]
[369094028,1751472646924,-460.0,0.00019178,2]
[369094030,1751472646933,-461.05828648,0.00019178,2]
[369094032,1751472646942,-460.0,0.00019178,2]
[369094034,1751472646953,-463.84740366,0.00019178,2]
[369094036,1751472646966,-460.0,0.00019178,2]
[369094038,1751472646976,-460.0,0.00019178,2]
[369094040,1751472646988,-156.649381,0.00019178,2]
[369094042,1751472647002,-156.649381,0.00019178,2]
[369094044,1751472647013,-156.649381,0.00019178,2]
[369094046,1751472647022,-156.649381,0.00019178,2]
[369094048,1751472647032,-156.649381,0.00019178,2]
[369094050,1751472647042,-460.0,0.00019178,2]
[369094052,1751472647055,-156.649381,0.00019178,2]
[369094054,1751472647065,-156.649385,0.00019178,2]
[369094056,1751472647076,-460.0,0.00019178,2]
[369094058,1751472647086,-460.0,0.00019178,2]
[369094060,1751472647095,-460.0,0.00019178,2]
[369094062,1751472647104,-460.0,0.00019178,2]
[369094064,1751472647114,-514.87927659,0.00019178,2]
[369094066,1751472647124,-437.13151554,0.00019178,2]
[369094068,1751472647134,-460.0,0.00019178,2]
[369094070,1751472647144,-500.0,0.00019178,2]
[369094072,1751472647153,-500.0,0.00019178,2]
[369094074,1751472647163,-500.0,0.00019178,2]
[369094076,1751472647172,-500.0,0.00019178,2]
[369094078,1751472647182,-500.0,0.00019178,2]
[369094080,1751472647192,-500.0,0.00019178,2]
[369094082,1751472647202,-460.0,0.00019178,2]
[369094084,1751472647211,-460.0,0.00019178,2]
[369094086,1751472647220,-356.39224192,0.00019178,2]
[369094088,1751472647230,-460.0,0.00019178,2]
[369094090,1751472647239,-455.88211171,0.00019178,2]
[369094092,1751472647248,-460.0,0.00019178,2]
[369094093,1751472647258,-460.0,0.00019178,2]
[369094095,1751472647268,-208.41,0.00019178,2]
[369094098,1751472647278,-460.0,0.00019178,2]
[369094099,1751472647288,-460.0,0.00019178,2]
[369094101,1751472647298,-460.0,0.00019178,2]
[369094103,1751472647310,-401.90887903,0.00019178,2]
[369094106,1751472647321,-460.0,0.00019178,2]
[369094108,1751472647331,-485.91,0.00019178,2]
[369094110,1751472647340,-460.0,0.00019178,2]
[369094112,1751472647350,-469.49567792,0.00019178,2]
[369094113,1751472647360,-460.45259994,0.00019178,2]
[369094115,1751472647370,-460.0,0.00019178,2]
[369094117,1751472647379,-460.0,0.00019178,2]
[369094119,1751472647390,-460.0,0.00019178,2]
[369094121,1751472647399,-460.0,0.00019178,2]
[369094123,1751472647409,-460.0,0.00019178,2]
[369094125,1751472647418,-599.76,0.00019178,2]
[369094127,1751472647428,-460.0,0.00019178,2]
[369094129,1751472647437,-460.0,0.00019178,2]
[369094131,1751472647448,-438.50187781,0.00019178,2]
[369094134,1751472647461,-460.0,0.00019178,2]
[369094135,1751472647472,-548.32,0.00019178,2]
[369094137,1751472647483,-568.84709465,0.00019178,2]
[369094139,1751472647493,-460.0,0.00019178,2]
[369094141,1751472647502,-460.0,0.00019178,2]
[369094144,1751472647512,-460.0,0.00019178,2]
[369094145,1751472647523,-460.0,0.00019178,2]
[369094147,1751472647740,-460.0,0.00019178,2]
[369094150,1751472647750,-710.66,0.00019178,2]
[369094151,1751472647760,-460.0,0.00019178,2]
[369094153,1751472647770,-460.0,0.00019178,2]
[369094155,1751472647779,-460.0,0.00019178,2]
[369094157,1751472647789,-460.0,0.00019178,2]
[369094159,1751472647798,-229.948935,0.00019178,2]
[369094161,1751472647809,-229.948935,0.00019178,2]
[369094163,1751472647819,-229.948935,0.00019178,2]
[369094165,1751472647829,-460.0,0.00019178,2]
[369094167,1751472647838,-229.948935,0.00019178,2]
[369094169,1751472647848,-229.948935,0.00019178,2]
[369094171,1751472647858,-229.948935,0.00019178,2]
[369094173,1751472647867,-229.948935,0.00019178,2]
[369094175,1751472647877,-460.0,0.00019178,2]
[369094177,1751472647887,-229.948935,0.00019178,2]
[369094179,1751472647896,-229.948935,0.00019178,2]
[369094181,1751472647906,-229.948935,0.00019178,2]
[369094183,1751472647916,-460.0,0.00019178,2]
[369094185,1751472647925,-229.948935,0.00019178,2]
[369094187,1751472647935,-229.948941,0.00019178,2]
[369094189,1751472647945,-460.0,0.00019178,2]
[369094191,1751472647954,-460.0,0.00019178,2]
[369094193,1751472647964,-460.0,0.00019178,2]
[369094195,1751472647975,-460.0,0.00019178,2]
[369094197,1751472647984,-460.0,0.00019178,2]
[369094199,1751472647993,-461.87934288,0.00019178,2]
[369094201,1751472648002,-460.0,0.00019178,2]
[369094203,1751472648013,-464.03683268,0.00019178,2]
[369094205,1751472648023,-460.0,0.00019178,2]
[369094207,1751472648033,-514.14,0.00019178,2]
[369094209,1751472648043,-1315.71,0.00019178,2]
[369094211,1751472648055,-469.30885599,0.00019178,2]
[369094213,1751472648066,-460.0,0.00019178,2]
[369094215,1751472648075,-460.0,0.00019178,2]
[369094217,1751472648085,-460.0,0.00019178,2]
[369094219,1751472648095,-460.0,0.00019178,2]
[369094221,1751472648107,-460.0,0.00019178,2]
[369094223,1751472648116,-460.0,0.00019178,2]
[369094225,1751472648126,-842.39,0.00019178,2]
[369094227,1751472648136,-3407.01,0.00019178,2]
[369094229,1751472648146,-460.0,0.00019178,2]
[369094231,1751472648156,-460.0,0.00019178,2]
[369094232,1751472648166,-460.0,0.00019178,2]
[369094234,1751472648175,-460.0,0.00019178,2]
[369094236,1751472648184,-460.0,0.00019178,2]
[369094238,1751472648194,-460.0,0.00019178,2]
[369094240,1751472648204,-759.61,0.00019178,2]
[369094242,1751472648214,-460.0,0.00019178,2]
[369094244,1751472648223,-460.0,0.00019178,2]
[369094246,1751472648232,-460.0,0.00019178,2]
[369094248,1751472648242,-460.0,0.00019178,2]
[369094250,1751472648252,-151.0,0.00019178,2]
[369094252,1751472648262,-151.0,0.00019178,2]
[369094254,1751472648272,-151.0,0.00019178,2]
[369094256,1751472648282,-460.0,0.00019178,2]
[369094258,1751472648292,-151.0,0.00019178,2]
[369094260,1751472648301,-151.0,0.00019178,2]
[369094262,1751472648313,-206.202789,0.00019178,2]
[369094264,1751472648323,-884.42,0.00019178,2]
[369094266,1751472648333,-3529.82,0.00019178,2]
[369094268,1751472648343,-460.0,0.00019178,2]
[369094270,1751472648353,-460.0,0.00019178,2]
[369094272,1751472648363,-1292.88,0.00019178,2]
[369094274,1751472648372,-460.0,0.00019178,2]
[369094276,1751472648382,-460.0,0.00019178,2]
[369094278,1751472648392,-460.0,0.00019178,2]
[369094280,1751472648402,-216.77210225,0.00019178,2]
[369094282,1751472648412,-460.0,0.00019178,2]
[369094284,1751472648422,-673.91,0.00019178,2]
[369094286,1751472648432,-1555.06,0.00019178,2]
[369094288,1751472648443,-2313.09,0.00019178,2]
[369094290,1751472648453,-636.19,0.00019178,2]
[369094292,1751472648464,-460.0,0.00019178,2]
[369094294,1751472648474,-562.1626285,0.00019178,2]
[369094296,1751472648484,-460.0,0.00019178,2]
[369094298,1751472648495,-460.0,0.00019178,2]
[369094300,1751472648505,-2174.4,0.00019178,2]
[369094302,1751472648515,-1199.12,0.00019178,2]
[369094304,1751472648526,-460.0,0.00019178,2]
[369094305,1751472648537,-460.0,0.00019178,2]
[369094307,1751472648546,-460.0,0.00019178,2]
[369094309,1751472648562,-460.0,0.00019178,2]
[369094312,1751472648575,-460.0,0.00019178,2]
[369094313,1751472648585,-460.0,0.00019178,2]
[369094315,1751472648596,-460.0,0.00019178,2]
[369094317,1751472648607,-497.9,0.00019178,2]
[369094319,1751472648617,-460.0,0.00019178,2]
[369094321,1751472648627,-460.0,0.00019178,2]
[369094323,1751472648638,-1394.73,0.00019178,2]
[369094325,1751472648648,-460.0,0.00019178,2]
[369094327,1751472648659,-473.2,0.00019178,2]
[369094329,1751472648669,-460.0,0.00019178,2]
[369094331,1751472648680,-737.27,0.00019178,2]
[369094333,1751472648690,-460.0,0.00019178,2]
[369094335,1751472648700,-733.37,0.00019178,2]
[369094338,1751472648710,-460.0,0.00019178,2]
[369094340,1751472648720,-460.0,0.00019178,2]
[369094342,1751472648730,-460.0,0.00019178,2]
[369094344,1751472648740,-412.74608267,0.00019178,2]
[369094346,1751472648750,-460.0,0.00019178,2]
[369094348,1751472648759,-460.0,0.00019178,2]
[369094350,1751472648769,-460.0,0.00019178,2]
[369094352,1751472648778,-460.0,0.00019178,2]
[369094354,1751472648788,-2196.37,0.00019178,2]
[369094356,1751472648797,-754.57,0.00019178,2]
[369094357,1751472648810,-460.0,0.00019178,2]
[369094359,1751472648820,-460.0,0.00019178,2]
[369094361,1751472648829,-2091.29,0.00019178,2]
[369094364,1751472648839,-460.0,0.00019178,2]
[369094365,1751472648848,-460.0,0.00019178,2]
[369094367,1751472648858,-1505.2,0.00019178,2]
[369094370,1751472648867,-460.0,0.00019178,2]
[369094371,1751472648877,-460.0,0.00019178,2]
[369094374,1751472648886,-460.0,0.00019178,2]
[369094375,1751472648895,-460.0,0.00019178,2]
[369094377,1751472648905,-460.0,0.00019178,2]
[369094380,1751472648918,-1883.81,0.00019178,2]
[369094382,1751472648927,-460.0,0.00019178,2]
[369094384,1751472648937,-2415.88944931,0.00019178,2]
[369095693,1751472691096,200.0,0.00027231,120]
[369095694,1751472722324,196.90230409,0.000222,69]
[369095697,1751472798036,293.901762,0.00013699,2]
[369095698,1751472806775,150.5,0.0002191,120]
[369095699,1751472807251,150.5,0.000219,120]
[369095700,1751472807678,158.38,0.0002189,120]
[369095701,1751472844591,2000.0,0.0002739,120]
[369095703,1751473137322,1774.303206,0.00027397,120]
[369095707,1751473215162,873.25685375,0.00027397,120]
[369095709,1751473352465,-2109.53924694,0.00016979,2]
[369095710,1751473352487,-159.0,0.00017014,3]
[369095711,1751473352510,-300.0,0.0001724,2]
[369095712,1751473352533,-24900.0,0.00017241,2]
[369095713,1751473352555,-440.06414859,0.00017743,2]
[369095714,1751473364408,500.0,0.0001724,2]
[369095715,1751473364438,258.33477314,0.0001724,2]
[369095716,1751473364467,375.0,0.0001724,2]
[369095717,1751473364519,255.83612905,0.0001724,2]
[369095718,1751473364548,457.42951613,0.0001724,2]
[369095719,1751473364592,500.0,0.0001724,2]
[369095720,1751473366302,334.0,0.00018,2]
[369095724,1751473525847,238.0,0.0002191,120]
[369095725,1751473526293,238.0,0.000219,120]
[369095726,1751473526593,150.5,0.0002191,120]
[369095727,1751473526815,238.0,0.0002189,120]
[369095728,1751473527046,150.5,0.000219,120]
[369095729,1751473527261,238.0,0.0002438,120]
[369095730,1751473527485,216.9,0.0002189,120]
[369095731,1751473527697,238.0,0.0002437,120]
[369095733,1751473528130,238.0,0.0002436,120]
[369095734,1751473528686,238.0,0.0002466,120]
[369095735,1751473528792,2111.61713474,0.00027397,120]
[369095737,1751473529141,238.0,0.0002465,120]
[369095738,1751473529587,238.0,0.0002499,120]
[369095739,1751473530043,244.92,0.0002498,120]
[369095743,1751473561502,500.0,0.00027397,120]
[369095744,1751473568332,500.0,0.00027397,120]
[369095745,1751473569604,896.56859896,0.00025099,120]
[369095747,1751473575155,500.0,0.00027397,120]
[369095748,1751473584326,500.0,0.00027397,120]
[369095749,1751473591688,500.0,0.00027397,120]
[369095750,1751473600549,153.0,0.00024,120]
[369095751,1751473603487,151.0,0.00018,2]
[369095752,1751473621451,536.0,0.00025099,60]
[369095753,1751473623876,536.0,0.00025099,60]
[369095754,1751473624106,500.0,0.00027397,120]
[369095755,1751473624223,536.0,0.00025099,60]
[369095756,1751473624590,536.0,0.00025099,60]
[369095757,1751473624952,540.0,0.00025099,60]
[369095758,1751473629487,1428.0,0.00025099,60]
[369095759,1751473629826,1431.0,0.00025099,60]
[369095760,1751473630150,1428.0,0.00025099,60]
[369095761,1751473630187,500.0,0.00027397,120]
[369095762,1751473630589,1428.0,0.00025099,60]
[369095763,1751473630981,1428.0,0.00025099,60]
[369095764,1751473632294,953.0,0.00025099,60]
[369095765,1751473632703,953.0,0.00025099,60]
[369095766,1751473633029,953.0,0.00025099,60]
[369095767,1751473633396,953.0,0.00025099,60]
[369095768,1751473633803,953.0,0.00025099,60]
[369095769,1751473635872,500.0,0.00027397,120]
[369095771,1751473640741,500.0,0.00023,120]
[369095772,1751473641512,298.39,0.00023,120]
[369095773,1751473643812,500.0,0.00027397,120]